bitfinex/quotes_ETHUSD_20251118
["timestamp","ask_amount","ask_price","bid_price","bid_amount"]
[1763454970782,8.2777827,3061.9,3061.0,0.1974]
[1763454970944,0.285,3061.8,3061.0,0.1974]
[1763454971279,0.285,3061.8,3060.7,0.4717]
[1763454971491,0.285,3061.8,3059.9,0.1974]
[1763454971492,0.405504,3061.4,3060.3,0.1974]
[1763454971670,1.31249664,3061.4,3060.3,0.1974]
[1763454972344,0.285,3061.3,3060.4,0.4717]
[1763454972778,0.285,3061.2,3060.4,0.4717]
[1763454972942,0.285,3061.1,3060.4,0.4717]
[1763454973447,0.285,3061.0,3060.4,0.4717]
[1763454973648,1.31249664,3061.8,3060.4,0.4717]
[1763454973851,0.285,3061.7,3060.4,0.4717]
[1763454974072,0.90699264,3061.8,3060.4,0.4717]
[1763454974383,8.2777827,3062.3,3060.4,0.4717]
[1763454974384,0.285,3061.7,3060.4,0.4717]
[1763454974976,0.285,3061.6,3060.4,0.4717]
[1763454975474,8.2777827,3062.3,3060.4,0.4717]
[1763454975475,0.285,3061.5,3060.4,0.4717]
[1763454975770,0.285,3061.4,3060.4,0.4717]
[1763454976181,1.31249664,3062.6,3061.3,0.1974]
[1763454976341,0.90699264,3062.6,3061.3,0.1974]
[1763454976537,0.285,3062.5,3061.3,0.1974]
[1763454976772,0.90699264,3062.6,3062.5,0.1974]
[1763454976946,0.285,3062.6,3062.5,0.1974]
[1763454977148,0.285,3062.6,3062.5,0.6691]
[1763454977373,0.285,3062.6,3062.2,0.1974]
[1763454977779,0.285,3062.6,3062.3,0.4717]
[1763454978144,0.285,3062.6,3062.2,0.1974]
[1763454978550,0.285,3062.6,3062.3,0.4717]
[1763454979051,0.90699264,3063.6,3062.3,0.4717]
[1763454979350,0.90699264,3063.4,3062.3,0.4717]
[1763454979761,0.90699264,3063.2,3062.3,0.4717]
[1763454979957,0.285,3063.1,3062.2,0.1974]
[1763454980171,0.90699264,3063.6,3062.2,0.683]
[1763454980491,8.2777827,3063.7,3062.2,0.683]
[1763454980663,8.2777827,3064.3,3062.3,0.4856]
[1763454980986,0.285,3064.2,3062.3,0.4856]
[1763454981281,0.285,3064.1,3062.3,0.4856]
[1763454981501,0.90699264,3063.8,3062.3,0.4856]
[1763454982684,8.2777827,3064.1,3062.3,0.4856]
[1763454982867,0.690504,3064.0,3062.3,0.4856]
[1763454983066,1.59749664,3064.0,3062.3,0.4856]
[1763454983566,0.285,3063.9,3062.3,0.4856]
[1763454984080,8.2777827,3065.0,3063.8,0.1933]
[1763454984385,8.2777827,3064.6,3062.3,0.4856]
[1763454984694,0.285,3064.5,3062.4,0.4856]
[1763454984975,0.405504,3064.4,3062.4,0.4856]
[1763454985187,0.90699264,3064.5,3062.5,0.03265306]
[1763454985361,0.90699264,3064.5,3062.4,0.4856]
[1763454985362,0.285,3064.3,3062.4,0.96848132]
[1763454985562,0.285,3064.2,3062.5,0.03265306]
[1763454985747,0.285,3064.2,3062.5,0.4856]
[1763454985948,0.90699264,3064.8,3062.5,0.4856]
[1763454986154,8.2777827,3065.2,3062.6,0.03265199]
[1763454986351,0.00496249,3065.7,3062.6,0.03265199]
[1763454986679,0.90699264,3065.1,3062.7,0.4856]
[1763454986881,0.285,3065.0,3062.7,0.4856]
[1763454987281,0.90699264,3064.7,3062.7,0.4856]
[1763454987482,0.90699264,3064.6,3062.7,0.4856]
[1763454988479,0.90699264,3064.2,3062.7,0.4856]
[1763454988692,0.285,3064.1,3062.7,0.4856]
[1763454989047,1.179,3064.0,3062.7,0.4856]
[1763454989246,1.31249664,3064.2,3062.7,0.4856]
[1763454989447,0.90699264,3063.8,3062.7,0.4856]
[1763454989864,0.285,3063.7,3062.7,0.4856]
[1763454991585,1.68698169,3065.3,3062.7,0.4856]
[1763454991586,0.405504,3064.7,3062.7,0.4856]
[1763454991752,0.405504,3064.5,3062.7,0.4856]
[1763454992674,0.90699264,3064.2,3062.7,0.4856]
[1763454992878,0.90699264,3064.2,3062.2,0.1974]
[1763454993070,0.90699264,3064.2,3062.5,0.4856]
[1763454993267,0.284,3064.1,3062.5,0.4856]
[1763454993592,8.2777827,3065.3,3062.6,0.405504]
[1763454993790,8.2777827,3065.3,3063.0,0.1933]
[1763454993963,0.285,3065.2,3063.0,0.1933]
[1763454994158,0.285,3065.2,3063.1,0.4856]
[1763454994600,0.285,3065.1,3063.1,0.4856]
[1763454994799,8.2777827,3065.3,3063.1,0.4856]
[1763454994800,0.284,3065.0,3063.1,0.4856]
[1763454995098,0.284,3064.9,3063.2,8.2777827]
[1763454995287,0.285,3064.8,3063.4,0.405504]
[1763454995491,0.00494149,3065.4,3063.7,0.405504]
[1763454995692,8.2777827,3067.7,3065.3,0.1933]
[1763454995892,0.014,3067.6,3065.3,0.1933]
[1763454996069,0.014,3067.6,3065.4,0.4568]
[1763454996270,2.34136013,3068.8,3067.5,0.58717985]
[1763454996508,0.01498052,3070.8,3067.1,0.03260408]
[1763454996509,0.285,3068.7,3067.1,0.03260408]
[1763454996713,8.5627827,3068.7,3067.0,0.6369]
[1763454996917,1.16094467,3068.6,3067.0,0.6369]
[1763454997202,0.288,3068.6,3067.0,0.6369]
[1763454997425,2.06893731,3068.5,3067.0,0.6369]
[1763454997584,0.289,3068.4,3067.0,0.6369]
[1763454997794,8.2777827,3068.8,3067.1,0.4568]
[1763454997795,0.289,3068.3,3067.1,0.4568]
[1763454998014,0.289,3068.2,3067.1,0.4568]
[1763454998170,0.00476694,3069.0,3067.1,0.4568]
[1763454998509,1.61692529,3068.8,3066.2,0.4568]
[1763454998673,0.90699264,3067.9,3066.2,0.4568]
[1763454998872,1.61692529,3068.8,3066.2,0.4568]
[1763454998873,0.90699264,3068.3,3066.2,0.4568]
[1763454999068,7.984848,3068.9,3066.3,0.03261259]
[1763454999307,2.646,3068.8,3066.4,0.4568]
[1763454999511,0.90699264,3068.3,3066.4,0.4568]
[1763454999677,0.289,3068.2,3066.4,0.4568]
[1763454999879,0.289,3068.1,3066.4,0.4568]
[1763455000086,0.289,3068.0,3066.4,0.4568]
[1763455000481,0.90699264,3068.3,3066.4,0.4568]
[1763455000708,0.90699264,3068.7,3066.4,0.4568]
[1763455000880,0.288,3068.2,3066.4,0.4568]
[1763455001083,0.90699264,3067.7,3066.4,0.4568]
[1763455001280,0.90699264,3067.7,3066.0,0.1801]
[1763455001281,0.288,3067.6,3066.0,0.1801]
[1763455001507,0.90699264,3067.7,3066.0,0.1801]
[1763455001508,0.288,3067.5,3066.1,0.4568]
[1763455001710,0.289,3067.4,3066.0,0.1801]
[1763455001870,0.289,3067.4,3065.3,0.1933]
[1763455001871,7.984848,3066.7,3065.3,0.1933]
[1763455002088,7.984848,3066.7,3063.3,0.87633827]
[1763455002089,0.90699264,3066.6,3064.9,0.4568]
[1763455002307,0.289,3066.5,3065.0,0.6369]
[1763455002505,0.289,3066.4,3065.0,0.6369]
[1763455002724,0.289,3066.4,3065.1,0.4568]
[1763455003117,0.289,3066.3,3065.1,0.4568]
[1763455003436,1.19599264,3066.2,3064.6,0.6369]
[1763455003590,1.19599264,3066.2,3064.6,0.1801]
[1763455003591,9.54865802,3065.8,3064.6,0.1801]
[1763455003790,0.90699264,3065.7,3064.1,0.1801]
[1763455003986,0.90699264,3065.2,3064.1,0.1801]
[1763455004187,0.90699264,3065.2,3063.8,0.1801]
[1763455004492,0.90699264,3065.2,3063.2,0.4568]
[1763455004721,1.69814606,3065.1,3063.2,0.4568]
[1763455004905,0.289,3065.0,3063.2,0.4568]
[1763455005094,1.95929946,3065.0,3063.2,0.4568]
[1763455005421,0.289,3065.0,3063.2,0.4568]
[1763455006013,0.90699264,3065.2,3063.5,0.4894424]
[1763455006216,0.289,3065.1,3063.5,0.4568]
[1763455006413,0.289,3065.0,3063.6,0.1801]
[1763455006611,0.405504,3065.6,3063.6,0.1801]
[1763455006818,0.289,3065.5,3063.7,0.4568]
[1763455007394,0.405504,3065.6,3063.7,0.4568]
[1763455007594,0.289,3065.5,3063.7,0.4568]
[1763455007792,0.405504,3065.6,3063.7,0.4568]
[1763455008097,0.289,3065.5,3063.7,0.4568]
[1763455008297,0.405504,3065.6,3063.7,0.4568]
[1763455008532,0.289,3065.5,3063.7,0.4568]
[1763455008731,0.405504,3065.6,3063.7,0.4568]
[1763455008732,0.289,3065.4,3063.7,0.4568]
[1763455008893,0.405504,3065.3,3063.3,0.4568]
[1763455009098,1.31249664,3064.7,3063.3,0.4568]
[1763455009518,0.289,3064.6,3063.3,0.4568]
[1763455009948,1.31249664,3064.1,3062.6,0.1801]
[1763455010167,0.90699264,3063.6,3062.4,0.1801]
[1763455010379,0.405504,3063.4,3062.3,0.001]
[1763455010648,0.90699264,3063.1,3062.3,0.001]
[1763455010966,0.18629902,3064.1,3062.3,0.001]
[1763455010967,2.55683942,3064.2,3062.3,0.001]
[1763455011108,1.31249664,3063.4,3062.3,0.001]
[1763455011313,0.405504,3063.2,3062.3,0.001]
[1763455011553,0.289,3063.1,3062.3,0.001]
[1763455011853,0.90699264,3063.4,3062.3,0.001]
[1763455011854,0.405504,3063.3,3062.3,0.001]
[1763455012023,0.90699264,3063.4,3062.3,0.001]
[1763455012024,0.289,3063.2,3062.3,0.001]
[1763455012210,0.405504,3063.8,3062.3,0.4578]
[1763455012411,0.289,3063.7,3062.3,0.4578]
[1763455012651,0.289,3063.7,3062.3,0.001]
[1763455012652,1.31249664,3063.3,3062.3,0.001]
[1763455012820,0.405504,3063.1,3062.3,0.001]
[1763455013010,1.31249664,3062.8,3062.3,0.001]
[1763455013213,9.54865802,3062.4,3062.3,0.001]
[1763455013408,10.86115466,3062.4,3062.3,0.001]
[1763455014227,11.15015466,3062.4,3062.3,0.001]
[1763455014746,12.83372372,3062.4,3062.3,0.001]
[1763455015047,11.15015466,3062.4,3062.3,0.001]
[1763455015571,10.86115466,3062.4,3062.3,0.001]
[1763455015716,11.15015466,3062.4,3062.3,0.001]
[1763455015918,12.83372372,3062.4,3062.3,0.001]
[1763455016134,10.86115466,3062.4,3062.3,0.001]
[1763455016321,11.15015466,3062.4,3062.3,0.001]
[1763455016624,10.86115466,3062.4,3062.3,0.001]
[1763455017046,11.15015466,3062.4,3062.3,0.001]
[1763455017453,10.86115466,3062.4,3062.3,0.001]
[1763455017824,11.15015466,3062.4,3062.3,0.001]
[1763455018655,0.4578,3064.8,3062.3,0.4578]
[1763455018828,0.45446597,3064.7,3062.3,0.4578]
[1763455019031,9.54865802,3064.3,3062.3,0.4578]
[1763455019241,1.468,3064.2,3062.3,0.4578]
[1763455019421,0.289,3064.2,3062.3,0.4578]
[1763455019620,0.289,3064.1,3062.3,0.4578]
[1763455020056,9.54865802,3064.3,3062.3,0.4578]
[1763455020230,9.54865802,3064.8,3062.3,0.4578]
[1763455020437,0.19332031,3065.1,3062.4,0.03265412]
[1763455020637,0.19332031,3065.1,3065.0,0.1801]
[1763455020957,0.289,3065.1,3065.0,0.1801]
[1763455021158,9.54865802,3067.4,3065.0,0.6369]
[1763455021460,0.90699264,3066.8,3065.0,0.6369]
[1763455021661,9.54865802,3066.9,3065.1,0.4568]
[1763455022017,6.63826641,3070.1,3070.0,142.92049316]
[1763455022230,17.2121025,3070.1,3070.0,65.36662212]
[1763455022429,18.78134914,3070.1,3070.0,43.38401119]
[1763455022648,13.7956457,3070.1,3070.0,28.23744121]
[1763455022853,1.66049106,3069.9,3065.0,0.1801]
[1763455023038,1.66049106,3069.9,3063.1,0.86019409]
[1763455023039,0.405504,3066.1,3064.5,0.1801]
[1763455023348,0.405504,3066.1,3064.6,0.09999999]
[1763455023524,0.29,3066.0,3064.9,0.09999999]
[1763455023724,0.405504,3065.9,3064.6,0.4568]
[1763455023951,0.405504,3065.9,3062.6,0.86019409]
[1763455023952,1.31249664,3065.7,3064.2,0.1801]
[1763455024157,1.31249664,3065.7,3064.5,0.09999999]
[1763455024346,1.31249664,3065.7,3064.2,0.1801]
[1763455024720,0.405504,3065.5,3064.3,0.09999999]
[1763455025118,1.68399728,3067.5,3065.3,0.09999999]
[1763455025319,0.29,3067.0,3065.5,0.09999999]
[1763455025652,0.29,3066.9,3065.5,0.09999999]
[1763455025961,0.29,3066.9,3065.5,0.59309999]
[1763455026525,9.54865802,3066.6,3065.3,0.09999999]
[1763455026853,0.90699264,3066.5,3065.5,0.09999999]
[1763455027056,0.29,3066.4,3065.5,0.09999999]
[1763455027253,0.29,3066.3,3065.5,0.09999999]
[1763455027455,0.405504,3066.2,3064.8,0.57359999]
[1763455027659,0.405504,3066.2,3064.3,0.4736]
[1763455027822,0.29,3066.3,3064.5,0.09999999]
[1763455027823,1.31249664,3066.0,3064.5,0.09999999]
[1763455028023,1.31249664,3066.0,3064.3,0.57359999]
[1763455028224,1.31249664,3066.0,3064.8,0.09999999]
[1763455028419,9.54865802,3066.1,3064.7,0.09999999]
[1763455028420,1.31249664,3066.1,3064.7,0.09999999]
[1763455028624,1.31249664,3066.1,3064.3,0.4736]
[1763455028625,0.29,3066.0,3064.8,0.09999999]
[1763455028825,1.31249664,3066.1,3064.8,0.09999999]
[1763455029056,0.29,3066.0,3064.8,0.57359999]
[1763455029356,1.31249664,3066.1,3064.8,0.57359999]
[1763455029556,0.90699264,3066.1,3064.8,0.57359999]
[1763455029760,0.90699264,3067.0,3065.2,0.09999999]
[1763455029925,9.54865802,3067.1,3065.2,0.09999999]
[1763455029926,0.29,3066.9,3065.2,0.57359999]
[1763455030126,0.29,3066.9,3065.3,0.09999999]
[1763455030430,0.405504,3066.8,3065.3,0.09999999]
[1763455030665,9.54865802,3067.1,3065.3,0.57359999]
[1763455030974,1.60249664,3067.0,3065.3,0.57359999]
[1763455031341,9.54865802,3066.0,3064.6,0.09999999]
[1763455031680,0.90699264,3066.9,3064.7,0.09999999]
[1763455031829,0.405504,3066.0,3064.7,0.09999999]
[1763455032025,0.29,3065.9,3064.2,0.1801]
[1763455032259,0.405504,3066.0,3064.4,0.09999999]
[1763455032580,0.4736,3067.2,3064.3,0.4736]
[1763455032581,0.405504,3066.5,3064.8,0.09999999]
[1763455032738,0.29,3066.4,3064.8,0.09999999]
[1763455032927,0.405504,3066.3,3064.8,0.57359999]
[1763455033128,0.405504,3066.5,3065.1,0.09999999]
[1763455033324,0.405504,3066.1,3065.1,0.09999999]
[1763455033572,0.405504,3066.1,3064.8,0.4736]
[1763455033869,1.31249664,3066.1,3064.6,0.09999999]
[1763455035184,1.31249664,3066.1,3064.4,0.09999999]
[1763455035185,2.97361241,3066.1,3064.4,0.09999999]
[1763455035333,0.405504,3066.0,3064.4,0.09999999]
[1763455035539,2.56810841,3066.1,3064.5,0.4736]
[1763455035540,0.90699264,3066.1,3064.5,0.4736]
[1763455035765,0.289,3066.0,3064.6,0.09999999]
[1763455036033,0.29,3065.9,3064.6,0.09999999]
[1763455036283,0.29,3065.8,3064.6,0.09999999]
[1763455036481,0.405504,3065.7,3064.4,0.09999999]
[1763455036904,0.405504,3065.7,3064.0,0.4736]
[1763455037192,0.405504,3065.3,3063.4,0.001]
[1763455037347,9.54865802,3065.5,3063.5,0.09999999]
[1763455037668,0.405504,3065.1,3063.5,0.09999999]
[1763455037967,0.405504,3064.9,3063.4,0.001]
[1763455038370,0.90699264,3065.7,3063.8,0.09999999]
[1763455038579,0.694504,3065.6,3063.9,0.6541]
[1763455038933,0.405504,3065.4,3063.9,0.6541]
[1763455039158,2.358,3065.3,3063.9,0.6541]
[1763455039369,0.405504,3065.1,3063.9,0.6541]
[1763455039583,1.6127148,3065.7,3063.9,0.6541]
[1763455039584,1.179,3065.0,3064.3,0.09999999]
[1763455039785,0.289,3064.9,3064.3,0.09999999]
[1763455039982,0.289,3064.8,3064.4,0.4736]
[1763455040183,1.6701782,3067.0,3064.6,0.09999999]
[1763455040383,0.289,3066.9,3064.9,0.09999999]
[1763455040585,1.6798603,3067.3,3064.9,0.57359999]
[1763455040772,1.67982689,3067.1,3064.9,0.57359999]
[1763455041089,0.405504,3066.8,3064.9,0.57359999]
[1763455041285,0.90699264,3067.4,3064.9,0.57359999]
[1763455041449,1.9688603,3067.3,3065.3,0.09999999]
[1763455041654,0.90699264,3067.4,3065.3,0.09999999]
[1763455041655,1.93509111,3067.2,3065.3,0.09999999]
[1763455041886,0.405504,3066.9,3065.3,0.09999999]
[1763455042186,0.405504,3066.7,3064.9,0.4736]
[1763455042368,0.405504,3066.5,3065.2,0.09999999]
[1763455042565,0.405504,3066.5,3064.9,0.57359999]
[1763455042765,0.405504,3066.5,3065.2,0.09999999]
[1763455043753,0.405504,3066.3,3065.2,0.09999999]
[1763455044179,0.289,3066.2,3065.2,0.09999999]
[1763455044559,0.289,3066.1,3065.2,0.09999999]
[1763455044781,0.405504,3066.8,3065.2,0.57359999]
[1763455045090,0.405504,3066.6,3065.2,0.57359999]
[1763455045291,0.405504,3067.2,3065.4,0.09999999]
[1763455045609,9.55065802,3067.5,3065.4,0.09999999]
[1763455045785,0.289,3067.4,3065.6,0.09999999]
[1763455045988,0.289,3067.4,3065.6,0.57359999]
[1763455046160,0.002,3067.5,3065.6,0.57359999]
[1763455046359,0.289,3067.4,3065.6,0.57359999]
[1763455047107,0.694504,3067.3,3065.6,0.57359999]
[1763455047266,0.002,3067.5,3065.6,0.57359999]
[1763455047267,0.002,3067.5,3065.8,0.09999999]
[1763455047605,0.289,3067.4,3065.8,0.09999999]
[1763455047803,0.002,3067.5,3065.8,0.09999999]
[1763455047964,0.288,3067.3,3065.8,0.09999999]
[1763455048168,0.288,3067.3,3065.3,0.1805]
[1763455048169,9.95416202,3067.0,3065.3,0.1805]
[1763455048368,0.405504,3066.4,3065.0,0.1805]
[1763455048576,0.405504,3066.2,3065.2,0.09999999]
[1763455049001,0.405504,3066.2,3065.0,0.1805]
[1763455049195,1.31249664,3066.0,3065.0,0.1805]
[1763455049391,0.405504,3066.0,3065.0,0.1805]
[1763455049708,0.405504,3065.8,3065.2,0.09999999]
[1763455049869,0.405504,3066.8,3065.2,0.09999999]
[1763455050071,0.405504,3066.6,3065.2,0.09999999]
[1763455050278,0.90699264,3066.9,3065.2,0.09999999]
[1763455050483,1.64045999,3067.6,3065.9,0.09999999]
[1763455050484,0.288,3066.8,3065.9,0.09999999]
[1763455050702,0.288,3066.8,3065.3,0.57359999]
[1763455051106,0.405504,3067.3,3065.6,0.09999999]
[1763455051410,0.288,3067.2,3065.6,0.09999999]
[1763455051806,0.405504,3067.1,3065.6,0.09999999]
[1763455052978,0.405504,3067.4,3065.6,0.09999999]
[1763455053608,0.405504,3067.4,3065.9,0.09999999]
[1763455053816,0.288,3067.3,3065.6,0.57359999]
[1763455054110,0.288,3067.2,3065.9,0.09999999]
[1763455054311,1.31249664,3066.9,3065.3,0.09999999]
[1763455054636,0.288,3066.8,3065.9,0.09999999]
[1763455055247,0.405504,3066.7,3065.9,0.09999999]
[1763455055769,0.288,3066.8,3065.0,0.1805]
[1763455055770,0.405504,3066.8,3065.0,0.1805]
[1763455056056,0.288,3066.7,3065.6,0.09999999]
[1763455056358,0.405504,3066.8,3065.4,0.4736]
[1763455056559,0.288,3066.7,3065.6,0.09999999]
[1763455056760,0.693504,3066.6,3065.6,0.09999999]
[1763455056916,0.405504,3067.2,3066.3,0.09999999]
[1763455057112,0.405504,3067.0,3066.2,0.1842]
[1763455057858,0.405504,3067.0,3065.9,0.1842]
[1763455058211,0.405504,3067.0,3065.7,0.4582]
[1763455058510,0.405504,3067.0,3065.5,0.1842]
[1763455058910,0.405504,3067.0,3065.5,0.6424]
[1763455059128,0.405504,3066.8,3065.8,0.09999999]
[1763455059463,1.31249664,3066.8,3065.6,0.55819999]
[1763455059967,1.31249664,3066.8,3065.8,0.09999999]
[1763455060127,0.287,3066.7,3065.8,0.09999999]
[1763455060331,0.002,3067.5,3066.1,0.09999999]
[1763455060528,0.287,3067.4,3066.1,0.09999999]
[1763455060825,0.405504,3067.3,3066.1,0.09999999]
[1763455061056,0.405504,3067.3,3066.2,0.4582]
[1763455061873,0.405504,3067.3,3066.1,0.09999999]
[1763455062176,0.90899264,3067.5,3066.4,0.09999999]
[1763455062177,0.405504,3067.1,3066.4,0.09999999]
[1763455062475,0.405504,3067.1,3066.1,0.55819999]
[1763455062964,0.405504,3066.9,3066.4,0.09999999]
[1763455063131,0.287,3066.8,3066.1,0.4582]
[1763455063329,0.287,3066.8,3066.2,0.09999999]
[1763455063765,0.287,3066.8,3066.4,0.09999999]
[1763455064265,0.287,3066.8,3066.2,0.09999999]
[1763455064438,0.287,3066.8,3066.4,0.09999999]
[1763455064635,0.90899264,3067.5,3066.4,0.09999999]
[1763455064851,0.002,3067.5,3067.4,0.1965]
[1763455065060,0.289,3067.5,3067.4,0.1965]
[1763455065272,0.289,3067.5,3067.4,0.6896]
[1763455065470,0.289,3067.5,3067.4,0.78959999]
[1763455065471,0.002,3067.5,3067.4,0.78959999]
[1763455065679,2.01250303,3069.7,3067.6,0.09999999]
[1763455065977,8.2419888,3069.0,3067.6,0.09999999]
[1763455066155,0.90699264,3068.9,3067.6,0.09999999]
[1763455066358,0.90699264,3068.9,3067.6,0.59309999]
[1763455066553,8.2419888,3069.4,3067.9,0.09999999]
[1763455066946,0.287,3069.3,3068.2,0.09999999]
[1763455067150,0.287,3069.2,3068.2,0.09999999]
[1763455067351,0.287,3069.2,3068.3,0.1965]
[1763455067748,0.405504,3069.1,3068.3,0.1965]
[1763455069047,1.465,3069.0,3068.3,0.1965]
[1763455069252,0.90699264,3068.9,3068.3,0.1965]
[1763455069453,0.405504,3068.8,3068.3,0.1965]
[1763455069852,0.287,3068.7,3068.4,0.4931]
[1763455070287,0.287,3068.6,3068.4,0.4931]
[1763455070454,0.405504,3069.3,3067.4,0.1965]
[1763455070455,0.405504,3068.4,3068.0,0.1965]
[1763455070654,0.287,3068.3,3068.1,0.1965]
[1763455070888,0.90699264,3069.0,3068.1,0.1965]
[1763455071184,0.692504,3068.9,3068.1,0.1965]
[1763455071389,0.405504,3068.9,3068.1,0.1965]
[1763455071590,0.405504,3068.7,3068.1,0.1965]
[1763455071889,0.405504,3068.9,3068.1,0.1965]
[1763455072186,0.405504,3068.5,3068.1,0.1965]
[1763455073598,1.31249664,3068.2,3067.4,0.1965]
[1763455073799,0.405504,3068.0,3067.4,0.1965]
[1763455074005,1.31249664,3067.8,3066.9,0.09999999]
[1763455074894,1.31249664,3067.4,3066.2,0.09999999]
[1763455075115,1.31249664,3067.4,3066.1,0.4931]
[1763455075116,1.31249664,3067.0,3066.1,0.4931]
[1763455075262,1.31249664,3067.0,3066.0,0.1965]
[1763455075596,1.31249664,3067.0,3066.1,0.09999999]
[1763455075597,1.31249664,3066.6,3066.1,0.09999999]
[1763455075797,0.286,3066.5,3066.1,0.09999999]
[1763455075972,0.405504,3066.6,3066.1,0.09999999]
[1763455076169,1.60720876,3068.3,3066.0,0.1965]
[1763455076170,0.286,3066.4,3066.3,0.09999999]
[1763455076497,0.286,3066.4,3066.2,0.4931]
[1763455076498,0.90699264,3067.7,3066.5,0.09999999]
[1763455076808,0.691504,3067.6,3066.5,0.09999999]
[1763455077103,0.405504,3067.4,3067.2,0.09999999]
[1763455077599,0.286,3067.3,3067.2,0.09999999]
[1763455079205,2.356,3067.3,3067.2,0.59309999]
[1763455079498,0.90699264,3067.3,3067.2,0.59309999]
[1763455079707,0.1673,3068.7,3067.4,0.09999999]
[1763455080004,0.286,3068.6,3067.4,0.09999999]
[1763455080192,0.1673,3068.7,3067.5,0.4931]
[1763455080409,0.286,3068.6,3067.5,0.4931]
[1763455080721,8.2419888,3068.4,3067.4,0.09999999]
[1763455081012,0.405504,3068.3,3067.4,0.09999999]
[1763455081676,0.1673,3069.1,3068.4,0.09999999]
[1763455081875,2.34213905,3069.7,3068.2,0.1965]
[1763455081876,0.4976,3069.7,3068.6,0.09999999]
[1763455082209,2.34213905,3070.5,3068.6,0.09999999]
[1763455082503,0.01498052,3070.8,3069.2,0.09999999]
[1763455082504,0.7836,3069.9,3069.2,0.09999999]
[1763455082715,8.2419888,3069.6,3068.6,0.09999999]
[1763455082874,0.90699264,3069.5,3068.6,0.09999999]
[1763455083073,0.286,3069.4,3068.6,0.09999999]
[1763455084111,8.2419888,3069.6,3068.6,0.09999999]
[1763455084281,0.286,3069.5,3069.3,0.1965]
[1763455084489,0.286,3069.4,3069.0,0.1965]
[1763455084673,0.286,3069.3,3069.0,0.1965]
[1763455085010,0.90699264,3069.9,3069.0,0.1965]
[1763455085011,0.90699264,3069.9,3069.1,0.4931]
[1763455085211,0.286,3069.8,3069.1,0.4931]
[1763455085507,0.90699264,3069.9,3069.1,0.4931]
[1763455085804,0.286,3069.7,3069.1,0.4931]
[1763455086006,0.286,3069.6,3069.1,0.4931]
[1763455086623,0.286,3069.5,3069.3,0.09999999]
[1763455086825,3.275806,3070.0,3069.3,0.09999999]
[1763455086826,0.286,3069.4,3069.3,0.09999999]
[1763455087420,3.68131,3070.0,3069.9,0.09999999]
[1763455087421,3.275806,3070.0,3069.9,0.09999999]
[1763455087582,3.562806,3070.0,3069.9,0.09999999]
[1763455087777,3.562806,3070.0,3069.9,0.57309999]
[1763455088219,0.01498052,3070.8,3070.5,0.09999999]
[1763455088795,0.405504,3070.6,3069.8,0.09999999]
[1763455089006,0.01498052,3070.8,3069.6,0.09999999]
[1763455089211,0.01498052,3070.8,3070.2,0.09999999]
[1763455089523,2.34213905,3072.3,3070.2,0.09999999]
[1763455089524,8.2419888,3073.5,3072.5,0.09999999]
[1763455089813,0.1729,3073.7,3072.3,0.09999999]
[1763455089814,0.1811,3072.9,3072.3,0.09999999]
[1763455090017,0.288,3072.8,3072.5,0.09999999]
[1763455090331,0.288,3072.7,3072.5,0.57309999]
[1763455090637,0.288,3072.7,3072.5,0.09999999]
[1763455091185,0.1729,3073.5,3072.5,0.09999999]
[1763455091506,0.29,3073.4,3072.7,0.09999999]
[1763455091704,0.29,3073.3,3073.0,0.09999999]
[1763455091886,0.29,3073.3,3072.8,0.4731]
[1763455092087,0.405504,3074.0,3072.8,0.4731]
[1763455092428,0.90699264,3074.2,3072.8,0.4731]
[1763455092429,8.5319888,3073.9,3072.8,0.4731]
[1763455092713,0.29,3073.8,3073.4,0.09999999]
[1763455093284,8.2419888,3075.9,3074.6,0.09999999]
[1763455093514,0.291,3075.6,3074.4,0.09999999]
[1763455093722,0.1811,3075.5,3074.4,0.09999999]
[1763455093881,0.1811,3075.5,3073.5,0.184]
[1763455094087,0.1811,3075.5,3074.1,0.09999999]
[1763455094281,0.291,3075.4,3074.6,0.09999999]
[1763455094514,8.2419888,3075.1,3074.0,0.09999999]
[1763455094718,0.1811,3075.5,3073.6,0.4731]
[1763455094719,8.2419888,3074.9,3073.6,0.4731]
[1763455094882,8.2419888,3075.4,3074.2,0.09999999]
[1763455095084,0.09083496,3075.7,3074.4,0.09999999]
[1763455095339,0.292,3075.6,3074.6,0.09999999]
[1763455095488,0.292,3075.5,3075.4,0.09999999]
[1763455095688,0.09083496,3075.7,3075.4,0.57309999]
[1763455096043,0.09083496,3075.7,3075.3,0.09999999]
[1763455096204,0.292,3075.6,3075.3,0.09999999]
[1763455096404,0.90699264,3075.3,3075.0,0.09999999]
[1763455096607,0.09083496,3075.7,3074.5,0.28399999]
[1763455096926,0.292,3075.6,3074.8,0.09999999]
[1763455097101,0.90699264,3075.2,3073.5,0.6571]
[1763455097282,0.405504,3075.0,3074.5,0.09999999]
[1763455097485,0.405504,3074.8,3073.6,0.4731]
[1763455097938,0.90699264,3075.2,3074.5,0.09999999]
[1763455097939,0.405504,3075.1,3074.5,0.09999999]
[1763455098101,0.405504,3075.1,3074.0,0.09999999]
[1763455098284,0.405504,3074.9,3074.5,0.09999999]
[1763455098827,0.405504,3074.9,3074.3,0.09999999]
[1763455099032,0.4584,3074.8,3074.0,0.09999999]
[1763455099326,0.405504,3073.5,3072.3,0.4731]
[1763455099624,0.405504,3073.3,3072.4,0.09999999]
[1763455099844,0.405504,3073.3,3071.8,0.4892]
[1763455100018,1.31249664,3073.0,3071.9,0.09999999]
[1763455100224,1.31249664,3072.5,3071.6,0.09999999]
[1763455100437,1.31249664,3072.0,3070.9,0.1885]
[1763455100636,1.68488166,3075.4,3071.0,0.52176268]
[1763455100840,0.292,3073.5,3072.7,0.09999999]
[1763455101038,0.292,3073.4,3072.7,0.09999999]